[Event "Early-Titled-Tuesday-Blitz-May-07-2024"]
[Site "Chess.com"]
[Date "2024.05.07"]
[Round "4"]
[White "jefferyx"]
[Black "mind1mover"]
[Result "1-0"]
[WhiteElo "3129"]
[BlackElo "2904"]
[TimeControl "180+1"]
[EndTime "8:43:29 PDT"]
[Termination "jefferyx won by resignation"]

1. d4 {[%clk 0:02:54.2]} 1... d5 {[%clk 0:02:58.7]} 2. c4 {[%clk 0:02:49.2]}
2... dxc4 {[%clk 0:02:59.6]} 3. Nf3 {[%clk 0:02:40.4]} 3... Nf6 {[%clk
0:02:59.8]} 4. e3 {[%clk 0:02:40.7]} 4... e6 {[%clk 0:03:00.3]} 5. Bxc4 {[%clk
0:02:40.9]} 5... c5 {[%clk 0:03:01]} 6. O-O {[%clk 0:02:40.4]} 6... Nc6 {[%clk
0:03:01.5]} 7. a3 {[%clk 0:02:39.7]} 7... a6 {[%clk 0:02:58]} 8. dxc5 {[%clk
0:02:35.1]} 8... Qxd1 {[%clk 0:02:58.9]} 9. Rxd1 {[%clk 0:02:35]} 9... Bxc5
{[%clk 0:02:59.8]} 10. b4 {[%clk 0:02:35]} 10... Be7 {[%clk 0:02:59.3]} 11. Bb2
{[%clk 0:02:35.6]} 11... O-O {[%clk 0:02:56.7]} 12. Nbd2 {[%clk 0:02:35.8]}
12... b5 {[%clk 0:02:52.5]} 13. Be2 {[%clk 0:02:34.1]} 13... Bb7 {[%clk
0:02:44.4]} 14. Rac1 {[%clk 0:02:16.6]} 14... Rfd8 {[%clk 0:02:42.2]} 15. Nd4
{[%clk 0:02:06.8]} 15... Rac8 {[%clk 0:01:56.9]} 16. N2b3 {[%clk 0:02:05.6]}
16... Na7 {[%clk 0:01:36]} 17. Na5 {[%clk 0:01:46.3]} 17... Ba8 {[%clk
0:01:26.8]} 18. Nab3 {[%clk 0:00:53.9]} 18... Nd5 {[%clk 0:01:15.5]} 19. Bf3
{[%clk 0:00:37.5]} 19... Nb6 {[%clk 0:01:09.2]} 20. Bxa8 {[%clk 0:00:36.6]}
20... Nxa8 {[%clk 0:01:09.5]} 21. Na5 {[%clk 0:00:33.5]} 21... Bf6 {[%clk
0:00:59.7]} 22. Kf1 {[%clk 0:00:32]} 22... Nb6 {[%clk 0:00:58.1]} 23. Ke2 {[%clk
0:00:31.8]} 23... Rxc1 {[%clk 0:00:51.6]} 24. Rxc1 {[%clk 0:00:31.1]} 24... Rc8
{[%clk 0:00:52.2]} 25. Rd1 {[%clk 0:00:06.5]} 25... Na4 {[%clk 0:00:40.3]} 26.
Ba1 {[%clk 0:00:06.8]} 26... Nc3+ {[%clk 0:00:40.9]} 27. Bxc3 {[%clk 0:00:06.7]}
27... Rxc3 {[%clk 0:00:41.8]} 28. Rd3 {[%clk 0:00:04.8]} 28... Rc7 {[%clk
0:00:35.2]} 29. Ndb3 {[%clk 0:00:05.1]} 29... Nc6 {[%clk 0:00:25.9]} 30. Nxc6
{[%clk 0:00:03.7]} 30... Rxc6 {[%clk 0:00:26.8]} 31. Nc5 {[%clk 0:00:04]} 31...
a5 {[%clk 0:00:25.9]} 32. Rd7 {[%clk 0:00:03]} 32... axb4 {[%clk 0:00:21.9]} 33.
axb4 {[%clk 0:00:03.9]} 33... Rb6 {[%clk 0:00:16]} 34. Ne4 {[%clk 0:00:04.4]}
34... Kf8 {[%clk 0:00:10.6]} 35. Nd6 {[%clk 0:00:03.4]} 35... Rc6 {[%clk
0:00:05.3]} 36. Rxf7+ {[%clk 0:00:03]} 36... Kg8 {[%clk 0:00:06]} 37. Rd7 {[%clk
0:00:03.8]} 37... h5 {[%clk 0:00:06.7]} 38. Nxb5 {[%clk 0:00:04]} 38... Rb6
{[%clk 0:00:06.4]} 39. Nc7 {[%clk 0:00:04.5]} 39... Kh7 {[%clk 0:00:02.4]} 40.
b5 {[%clk 0:00:03.9]} 40... Kg6 {[%clk 0:00:02.7]} 41. f4 {[%clk 0:00:03.8]}
41... e5 {[%clk 0:00:02.2]} 42. Kf3 {[%clk 0:00:04]} 42... exf4 {[%clk
0:00:02.4]} 43. exf4 {[%clk 0:00:04.6]} 43... Rb7 {[%clk 0:00:02.8]} 44. b6
{[%clk 0:00:04.1]} 44... Rxb6 {[%clk 0:00:02.5]} 45. Nd5 {[%clk 0:00:05]} 45...
Rb3+ {[%clk 0:00:02.8]} 46. Ke4 {[%clk 0:00:05.6]} 46... Ra3 {[%clk 0:00:02.3]}
47. f5+ {[%clk 0:00:06.5]} 47... Kh6 {[%clk 0:00:02.9]} 48. Rd6 {[%clk
0:00:07.4]} 48... Kg5 {[%clk 0:00:03.2]} 49. h4+ {[%clk 0:00:06.1]} 49... Kxh4
{[%clk 0:00:03.1]} 50. Nxf6 {[%clk 0:00:07]} 50... gxf6 {[%clk 0:00:03.8]} 51.
Rxf6 {[%clk 0:00:07.9]} 51... Ra4+ {[%clk 0:00:03.5]} 52. Ke5 {[%clk 0:00:08.3]}
52... Ra5+ {[%clk 0:00:03.7]} 53. Ke6 {[%clk 0:00:08.8]} 53... Ra6+ {[%clk
0:00:04.3]} 54. Kf7 {[%clk 0:00:09.2]} 54... Ra7+ {[%clk 0:00:02.6]} 55. Kg6
{[%clk 0:00:09.2]} 55... Kg4 {[%clk 0:00:02.8]} 56. Rb6 {[%clk 0:00:08.7]} 56...
h4 {[%clk 0:00:03.1]} 57. Rb4+ {[%clk 0:00:08.7]} 57... Kg3 {[%clk 0:00:03.3]}
58. f6 {[%clk 0:00:09.5]} 58... Ra6 {[%clk 0:00:01.7]} 59. Kg7 {[%clk 0:00:10]}
59... Kxg2 {[%clk 0:00:01.8]} 60. Rxh4 {[%clk 0:00:09.4]} 1-0

[Event "Early-Titled-Tuesday-Blitz-May-07-2024"]
[Site "Chess.com"]
[Date "2024.05.07"]
[Round "4"]
[White "DanielNaroditsky"]
[Black "PeshkaCh"]
[Result "1/2-1/2"]
[WhiteElo "3072"]
[BlackElo "2885"]
[TimeControl "180+1"]
[EndTime "8:43:32 PDT"]
[Termination "Game drawn - insufficient material"]

1. e4 {[%clk 0:01:41.6]} 1... e5 {[%clk 0:02:59.1]} 2. Nf3 {[%clk 0:01:41.4]}
2... Nc6 {[%clk 0:02:59.5]} 3. Bb5 {[%clk 0:01:37]} 3... a6 {[%clk 0:02:59.9]}
4. Ba4 {[%clk 0:01:37.2]} 4... Nge7 {[%clk 0:03:00.5]} 5. Nc3 {[%clk 0:01:33]}
5... Ng6 {[%clk 0:02:59.8]} 6. h4 {[%clk 0:01:32.4]} 6... Be7 {[%clk 0:02:59.7]}
7. h5 {[%clk 0:01:30.4]} 7... Nf4 {[%clk 0:02:59.2]} 8. d4 {[%clk 0:01:24.6]}
8... Nxg2+ {[%clk 0:02:59.3]} 9. Kf1 {[%clk 0:01:24.6]} 9... Nh4 {[%clk
0:03:00.2]} 10. Nxe5 {[%clk 0:01:20.9]} 10... Nxe5 {[%clk 0:02:58.1]} 11. dxe5
{[%clk 0:01:21.8]} 11... c6 {[%clk 0:02:23.2]} 12. Bb3 {[%clk 0:01:14.8]} 12...
d6 {[%clk 0:02:15.1]} 13. exd6 {[%clk 0:01:14.7]} 13... Bxd6 {[%clk 0:02:16]}
14. Qd4 {[%clk 0:00:42.5]} 14... Rg8 {[%clk 0:01:05]} 15. e5 {[%clk 0:00:42.8]}
15... Be7 {[%clk 0:01:04.5]} 16. Qxd8+ {[%clk 0:00:38.9]} 16... Bxd8 {[%clk
0:01:05.4]} 17. Ne4 {[%clk 0:00:38.5]} 17... Nf5 {[%clk 0:01:02.9]} 18. Bf4
{[%clk 0:00:35.8]} 18... Be6 {[%clk 0:01:03]} 19. Nc5 {[%clk 0:00:30.6]} 19...
Bxb3 {[%clk 0:00:45.7]} 20. axb3 {[%clk 0:00:31.5]} 20... Ra7 {[%clk 0:00:45]}
21. e6 {[%clk 0:00:31.1]} 21... Be7 {[%clk 0:00:39.6]} 22. exf7+ {[%clk
0:00:25.4]} 22... Kxf7 {[%clk 0:00:40.5]} 23. Nd3 {[%clk 0:00:23.7]} 23... Bf6
{[%clk 0:00:39.7]} 24. Be5 {[%clk 0:00:20.6]} 24... Raa8 {[%clk 0:00:40.4]} 25.
Re1 {[%clk 0:00:19.5]} 25... Rae8 {[%clk 0:00:40.2]} 26. Rh3 {[%clk 0:00:20.2]}
26... Re7 {[%clk 0:00:33.1]} 27. Rf3 {[%clk 0:00:19.9]} 27... g6 {[%clk
0:00:33.2]} 28. hxg6+ {[%clk 0:00:19.2]} 28... hxg6 {[%clk 0:00:34.1]} 29. Bxf6
{[%clk 0:00:14.9]} 29... Rxe1+ {[%clk 0:00:34.6]} 30. Kxe1 {[%clk 0:00:15]}
30... Kxf6 {[%clk 0:00:35.5]} 31. Kd2 {[%clk 0:00:15.3]} 31... Rd8 {[%clk
0:00:35.6]} 32. Rf4 {[%clk 0:00:15]} 32... Kg7 {[%clk 0:00:28.2]} 33. b4 {[%clk
0:00:13]} 33... Nd4 {[%clk 0:00:27.7]} 34. Re4 {[%clk 0:00:12.2]} 34... Nf5
{[%clk 0:00:27.4]} 35. Kc3 {[%clk 0:00:12.3]} 35... Kf6 {[%clk 0:00:26.8]} 36.
Nc5 {[%clk 0:00:12.3]} 36... Nd6 {[%clk 0:00:26.4]} 37. Rf4+ {[%clk 0:00:07.1]}
37... Ke7 {[%clk 0:00:23]} 38. Kb3 {[%clk 0:00:06.4]} 38... Rf8 {[%clk
0:00:20.9]} 39. Rxf8 {[%clk 0:00:05.7]} 39... Kxf8 {[%clk 0:00:21.8]} 40. Kc3
{[%clk 0:00:06.5]} 40... Ke7 {[%clk 0:00:20.3]} 41. Kd4 {[%clk 0:00:07.2]} 41...
Kf6 {[%clk 0:00:20.1]} 42. c3 {[%clk 0:00:05]} 42... Kf5 {[%clk 0:00:18.3]} 43.
Nd3 {[%clk 0:00:04.6]} 43... b6 {[%clk 0:00:17.1]} 44. f3 {[%clk 0:00:03.9]}
44... Nb5+ {[%clk 0:00:17.1]} 45. Ke3 {[%clk 0:00:04.6]} 45... Nd6 {[%clk
0:00:18]} 46. b3 {[%clk 0:00:04.1]} 46... g5 {[%clk 0:00:16.1]} 47. c4 {[%clk
0:00:03.6]} 47... Nb7 {[%clk 0:00:11.4]} 48. Nf2 {[%clk 0:00:03.3]} 48... c5
{[%clk 0:00:11.3]} 49. bxc5 {[%clk 0:00:02.8]} 49... bxc5 {[%clk 0:00:09.9]} 50.
Ne4 {[%clk 0:00:02.7]} 50... Kg6 {[%clk 0:00:05]} 51. Ng3 {[%clk 0:00:02.8]}
51... Na5 {[%clk 0:00:05.2]} 52. Ke4 {[%clk 0:00:02.6]} 52... Nxb3 {[%clk
0:00:05.8]} 53. Ne2 {[%clk 0:00:02.5]} 53... Kf6 {[%clk 0:00:05.3]} 54. Nc3
{[%clk 0:00:03]} 54... Nd2+ {[%clk 0:00:05.4]} 55. Kd5 {[%clk 0:00:02.6]} 55...
Nxf3 {[%clk 0:00:06.1]} 56. Kxc5 {[%clk 0:00:03.3]} 56... Ne5 {[%clk 0:00:06.3]}
57. Kd5 {[%clk 0:00:03.2]} 57... Nxc4 {[%clk 0:00:06.3]} 58. Kxc4 {[%clk
0:00:04.1]} 58... Ke5 {[%clk 0:00:06.8]} 59. Ne2 {[%clk 0:00:04.3]} 59... Ke4
{[%clk 0:00:07.2]} 60. Ng3+ {[%clk 0:00:04.3]} 60... Kf3 {[%clk 0:00:07.6]} 61.
Nh5 {[%clk 0:00:04.7]} 61... g4 {[%clk 0:00:08.2]} 62. Kb4 {[%clk 0:00:05.4]}
62... Ke4 {[%clk 0:00:08.2]} 63. Nf6+ {[%clk 0:00:05.3]} 63... Kf5 {[%clk
0:00:08.3]} 64. Nxg4 {[%clk 0:00:06.2]} 64... Kxg4 {[%clk 0:00:09.2]} 65. Ka5
{[%clk 0:00:07.1]} 65... Kf4 {[%clk 0:00:10.1]} 66. Kxa6 {[%clk 0:00:08]}
1/2-1/2

[Event "Early-Titled-Tuesday-Blitz-May-07-2024"]
[Site "Chess.com"]
[Date "2024.05.07"]
[Round "4"]
[White "faraone99"]
[Black "XDPS"]
[Result "0-1"]
[WhiteElo "2522"]
[BlackElo "2841"]
[TimeControl "180+1"]
[EndTime "8:43:35 PDT"]
[Termination "XDPS won by resignation"]

1. e4 {[%clk 0:03:00.9]} 1... c5 {[%clk 0:02:58.5]} 2. Nf3 {[%clk 0:03:00.5]}
2... e6 {[%clk 0:02:59]} 3. c4 {[%clk 0:02:59.4]} 3... Nc6 {[%clk 0:02:59]} 4.
d4 {[%clk 0:02:59.3]} 4... cxd4 {[%clk 0:02:59.6]} 5. Nxd4 {[%clk 0:03:00.2]}
5... Nf6 {[%clk 0:03:00]} 6. Nc3 {[%clk 0:03:00.4]} 6... Bb4 {[%clk 0:03:00.4]}
7. Nxc6 {[%clk 0:03:00.3]} 7... bxc6 {[%clk 0:03:01.3]} 8. Bd3 {[%clk
0:03:00.7]} 8... e5 {[%clk 0:03:01.9]} 9. O-O {[%clk 0:02:59.7]} 9... O-O {[%clk
0:03:02.5]} 10. Qe2 {[%clk 0:02:57.8]} 10... d6 {[%clk 0:03:02.7]} 11. Bd2
{[%clk 0:02:45.9]} 11... Re8 {[%clk 0:03:03.1]} 12. a3 {[%clk 0:02:45.6]} 12...
Bc5 {[%clk 0:03:03]} 13. b4 {[%clk 0:02:39.8]} 13... Bd4 {[%clk 0:03:03]} 14.
Rac1 {[%clk 0:02:39.8]} 14... Bg4 {[%clk 0:02:41.3]} 15. Qe1 {[%clk 0:02:39.6]}
15... Be6 {[%clk 0:02:41.7]} 16. Ne2 {[%clk 0:02:28.9]} 16... Bb6 {[%clk
0:02:37.9]} 17. Ng3 {[%clk 0:02:26.4]} 17... a5 {[%clk 0:02:28.4]} 18. h3 {[%clk
0:02:10.8]} 18... axb4 {[%clk 0:02:28.2]} 19. axb4 {[%clk 0:02:11.7]} 19... h6
{[%clk 0:02:18.2]} 20. Qe2 {[%clk 0:01:57.3]} 20... Bd4 {[%clk 0:02:15.9]} 21.
Rc2 {[%clk 0:01:53.2]} 21... Ra3 {[%clk 0:02:14.4]} 22. Rb1 {[%clk 0:01:49]}
22... Qb6 {[%clk 0:02:12.5]} 23. Bc1 {[%clk 0:01:41.4]} 23... Ra4 {[%clk
0:02:10.3]} 24. Bd2 {[%clk 0:01:41.4]} 24... Rea8 {[%clk 0:02:09.9]} 25. Be1
{[%clk 0:01:34.8]} 25... Ra3 {[%clk 0:02:09.4]} 26. Nf1 {[%clk 0:01:29.1]} 26...
h5 {[%clk 0:02:01]} 27. Qd1 {[%clk 0:01:28.2]} 27... g6 {[%clk 0:01:57.2]} 28.
Qe2 {[%clk 0:01:25.4]} 28... Kg7 {[%clk 0:01:56.8]} 29. Nd2 {[%clk 0:01:25.9]}
29... Qd8 {[%clk 0:01:35.3]} 30. Nf3 {[%clk 0:01:25.4]} 30... Ba7 {[%clk
0:01:33.3]} 31. Bc3 {[%clk 0:01:23]} 31... Nd7 {[%clk 0:01:32.2]} 32. Bb2 {[%clk
0:01:14]} 32... Ra4 {[%clk 0:01:29.5]} 33. Bc3 {[%clk 0:00:59.1]} 33... f6
{[%clk 0:01:29.6]} 34. Rd1 {[%clk 0:00:56.1]} 34... Qe7 {[%clk 0:01:27.5]} 35.
Rcd2 {[%clk 0:00:47.4]} 35... Ra3 {[%clk 0:01:23.3]} 36. Bb2 {[%clk 0:00:47.6]}
36... Rb3 {[%clk 0:01:23.4]} 37. b5 {[%clk 0:00:45.5]} 37... Rc8 {[%clk
0:01:09.3]} 38. Bb1 {[%clk 0:00:40.4]} 38... cxb5 {[%clk 0:01:01.8]} 39. cxb5
{[%clk 0:00:38.6]} 39... Bc5 {[%clk 0:01:00.8]} 40. Ba2 {[%clk 0:00:34.5]} 40...
Rxf3 {[%clk 0:01:00.7]} 41. Qxf3 {[%clk 0:00:31.9]} 41... Bxa2 {[%clk
0:01:00.3]} 42. Rc1 {[%clk 0:00:29.9]} 42... Rb8 {[%clk 0:00:53.7]} 43. Qd3
{[%clk 0:00:28.7]} 43... Be6 {[%clk 0:00:45.7]} 44. Ba3 {[%clk 0:00:28.9]} 44...
Rb6 {[%clk 0:00:45.9]} 45. Rb2 {[%clk 0:00:23.4]} 45... Bxa3 {[%clk 0:00:45.4]}
46. Qxa3 {[%clk 0:00:24.3]} 46... Nc5 {[%clk 0:00:45.8]} 47. Rd1 {[%clk
0:00:20.4]} 47... Nxe4 {[%clk 0:00:41.1]} 48. f3 {[%clk 0:00:13.1]} 48... Nc5
{[%clk 0:00:38.9]} 49. Rbd2 {[%clk 0:00:13.3]} 49... Bf7 {[%clk 0:00:34]} 50.
Kh2 {[%clk 0:00:13.5]} 50... d5 {[%clk 0:00:32.2]} 51. Rc1 {[%clk 0:00:12.5]}
51... Rxb5 {[%clk 0:00:32.2]} 52. Rdc2 {[%clk 0:00:13]} 52... e4 {[%clk
0:00:22.4]} 53. Rxc5 {[%clk 0:00:12.9]} 53... e3 {[%clk 0:00:17.1]} 54. Qc3
{[%clk 0:00:12.7]} 54... Rxc5 {[%clk 0:00:15.9]} 55. Qxc5 {[%clk 0:00:12.8]}
55... Qe5+ {[%clk 0:00:16.6]} 56. g3 {[%clk 0:00:12.3]} 56... h4 {[%clk
0:00:15.9]} 57. f4 {[%clk 0:00:11.9]} 57... Qb2+ {[%clk 0:00:15.2]} 58. Rc2
{[%clk 0:00:12.1]} 58... Qb3 {[%clk 0:00:13.1]} 59. Rc3 {[%clk 0:00:11.6]} 59...
Qa2+ {[%clk 0:00:11.3]} 60. Rc2 {[%clk 0:00:12]} 60... Qa4 {[%clk 0:00:09.6]}
61. Re2 {[%clk 0:00:10.9]} 61... d4 {[%clk 0:00:09.4]} 62. gxh4 {[%clk
0:00:10.6]} 62... Qc4 {[%clk 0:00:09]} 63. Qxc4 {[%clk 0:00:10.6]} 63... Bxc4
{[%clk 0:00:08.4]} 64. Re1 {[%clk 0:00:11.5]} 64... e2 {[%clk 0:00:09.1]} 65.
Kg3 {[%clk 0:00:11.8]} 65... d3 {[%clk 0:00:09.7]} 66. Kf2 {[%clk 0:00:12.1]}
66... d2 {[%clk 0:00:09.4]} 0-1

[Event "Early-Titled-Tuesday-Blitz-May-07-2024"]
[Site "Chess.com"]
[Date "2024.05.07"]
[Round "4"]
[White "Pertinhez76"]
[Black "luggevoila"]
[Result "0-1"]
[WhiteElo "2135"]
[BlackElo "2315"]
[TimeControl "180+1"]
[EndTime "8:43:35 PDT"]
[Termination "luggevoila won by checkmate"]

1. d4 {[%clk 0:02:59.6]} 1... Nf6 {[%clk 0:02:59.1]} 2. Bf4 {[%clk 0:02:57.9]}
2... e6 {[%clk 0:02:58.2]} 3. e3 {[%clk 0:02:57.8]} 3... c5 {[%clk 0:02:58.1]}
4. c3 {[%clk 0:02:57.5]} 4... Nc6 {[%clk 0:02:57.7]} 5. Nd2 {[%clk 0:02:57.6]}
5... d6 {[%clk 0:02:55.2]} 6. Bd3 {[%clk 0:02:57.7]} 6... Be7 {[%clk 0:02:51.4]}
7. h3 {[%clk 0:02:57.9]} 7... O-O {[%clk 0:02:48.2]} 8. Ngf3 {[%clk 0:02:58]}
8... Re8 {[%clk 0:02:42.6]} 9. Bg3 {[%clk 0:02:52.6]} 9... Bf8 {[%clk
0:02:40.5]} 10. O-O {[%clk 0:02:50.3]} 10... e5 {[%clk 0:02:40]} 11. e4 {[%clk
0:02:49.6]} 11... cxd4 {[%clk 0:02:33.4]} 12. cxd4 {[%clk 0:02:49.7]} 12... exd4
{[%clk 0:02:33.9]} 13. Nb3 {[%clk 0:02:48.8]} 13... Nxe4 {[%clk 0:02:29]} 14.
Bxe4 {[%clk 0:02:48.8]} 14... Rxe4 {[%clk 0:02:28.9]} 15. Re1 {[%clk 0:02:49.3]}
15... Rxe1+ {[%clk 0:02:25]} 16. Qxe1 {[%clk 0:02:49.6]} 16... Qf6 {[%clk
0:02:24.7]} 17. Rd1 {[%clk 0:02:49.3]} 17... Bxh3 {[%clk 0:02:19.6]} 18. gxh3
{[%clk 0:02:43.3]} 18... Qxf3 {[%clk 0:02:18.2]} 19. Nxd4 {[%clk 0:02:44]} 19...
Nxd4 {[%clk 0:02:10]} 20. Rxd4 {[%clk 0:02:44.9]} 20... d5 {[%clk 0:02:02.9]}
21. Qd2 {[%clk 0:02:40.1]} 21... Rd8 {[%clk 0:01:22.9]} 22. Rd3 {[%clk
0:02:36.6]} 22... Qe4 {[%clk 0:01:20.9]} 23. Rd4 {[%clk 0:02:36]} 23... Qf5
{[%clk 0:01:20.5]} 24. Kg2 {[%clk 0:02:33.5]} 24... h6 {[%clk 0:01:18.7]} 25. b4
{[%clk 0:02:32.7]} 25... Be7 {[%clk 0:01:15.7]} 26. Rf4 {[%clk 0:02:26.8]} 26...
Qe6 {[%clk 0:01:05.9]} 27. Qd3 {[%clk 0:02:21.2]} 27... Bd6 {[%clk 0:00:59.8]}
28. Rd4 {[%clk 0:02:18.4]} 28... Bxg3 {[%clk 0:00:59]} 29. fxg3 {[%clk
0:02:19.1]} 29... g6 {[%clk 0:00:56.2]} 30. a3 {[%clk 0:02:19]} 30... Kg7 {[%clk
0:00:56.6]} 31. h4 {[%clk 0:02:18.9]} 31... Qe5 {[%clk 0:00:57.1]} 32. Kh2
{[%clk 0:02:18.1]} 32... h5 {[%clk 0:00:57.2]} 33. Kg2 {[%clk 0:02:17.6]} 33...
a6 {[%clk 0:00:55.7]} 34. Qd2 {[%clk 0:02:08.1]} 34... b5 {[%clk 0:00:55.6]} 35.
Qd3 {[%clk 0:02:08.1]} 35... Rd6 {[%clk 0:00:54.4]} 36. Qd2 {[%clk 0:02:06.8]}
36... Kh7 {[%clk 0:00:51]} 37. Qd3 {[%clk 0:02:06.9]} 37... Kg8 {[%clk
0:00:51.6]} 38. Qd2 {[%clk 0:02:07.2]} 38... Kg7 {[%clk 0:00:52.3]} 39. Qd3
{[%clk 0:02:07.5]} 39... Rf6 {[%clk 0:00:47]} 40. Qd2 {[%clk 0:02:05.9]} 40...
Rf5 {[%clk 0:00:45.2]} 41. Rd3 {[%clk 0:01:59.4]} 41... Qe4+ {[%clk 0:00:44.9]}
42. Kh2 {[%clk 0:01:56.4]} 42... Re5 {[%clk 0:00:38.1]} 43. Qc3 {[%clk
0:01:45.3]} 43... f6 {[%clk 0:00:35.5]} 44. Rd2 {[%clk 0:01:42.4]} 44... Re7
{[%clk 0:00:29.3]} 45. Qc5 {[%clk 0:01:36.5]} 45... Rd7 {[%clk 0:00:23.6]} 46.
Qc8 {[%clk 0:01:32.9]} 46... Qe6 {[%clk 0:00:16.7]} 47. Kg2 {[%clk 0:01:27.6]}
47... d4 {[%clk 0:00:16.6]} 48. Kf2 {[%clk 0:01:27.6]} 48... Qe3+ {[%clk
0:00:16.2]} 49. Kf1 {[%clk 0:01:26.7]} 49... Re7 {[%clk 0:00:15.7]} 50. Rf2
{[%clk 0:01:25.4]} 50... Qe1+ {[%clk 0:00:14.8]} 51. Kg2 {[%clk 0:01:24.3]}
51... Qe4+ {[%clk 0:00:15.3]} 52. Kh2 {[%clk 0:01:23.6]} 52... d3 {[%clk
0:00:15.7]} 53. Qd8 {[%clk 0:01:22.8]} 53... Qe3 {[%clk 0:00:12.6]} 54. Kg2
{[%clk 0:01:19.1]} 54... Qe4+ {[%clk 0:00:10.4]} 55. Kh2 {[%clk 0:01:19.4]}
55... Qe3 {[%clk 0:00:08.2]} 56. Kg2 {[%clk 0:01:18.9]} 56... g5 {[%clk
0:00:08.2]} 57. hxg5 {[%clk 0:01:16.8]} 57... Qe4+ {[%clk 0:00:08.6]} 58. Kh2
{[%clk 0:01:15.8]} 58... fxg5 {[%clk 0:00:07.4]} 59. Qf8+ {[%clk 0:01:14.9]}
59... Kh7 {[%clk 0:00:07.3]} 60. Qf6 {[%clk 0:00:53.9]} 60... Qe5 {[%clk
0:00:05.2]} 61. Qf8 {[%clk 0:00:49.9]} 61... h4 {[%clk 0:00:05]} 62. Rg2 {[%clk
0:00:49]} 62... hxg3+ {[%clk 0:00:04.6]} 63. Kh3 {[%clk 0:00:49.7]} 63... Qe6+
{[%clk 0:00:03.7]} 64. Kxg3 {[%clk 0:00:50.1]} 64... Qe3+ {[%clk 0:00:03.9]} 65.
Kh2 {[%clk 0:00:49.1]} 65... Qf4+ {[%clk 0:00:03.9]} 66. Qxf4 {[%clk 0:00:48.3]}
66... gxf4 {[%clk 0:00:04.8]} 67. Kh3 {[%clk 0:00:47.8]} 67... Re2 {[%clk
0:00:05]} 68. Rg1 {[%clk 0:00:48.2]} 68... d2 {[%clk 0:00:05.5]} 69. Rd1 {[%clk
0:00:48.9]} 69... f3 {[%clk 0:00:05.8]} 70. Kg4 {[%clk 0:00:49.8]} 70... f2
{[%clk 0:00:06.2]} 71. Kg3 {[%clk 0:00:49.5]} 71... Re1 {[%clk 0:00:06.6]} 72.
Rxd2 {[%clk 0:00:49.2]} 72... f1=Q {[%clk 0:00:07]} 73. Rd7+ {[%clk 0:00:48.9]}
73... Kg8 {[%clk 0:00:07]} 74. Rd2 {[%clk 0:00:47.8]} 74... Qg1+ {[%clk
0:00:06.3]} 75. Kf4 {[%clk 0:00:48.2]} 75... Qe3+ {[%clk 0:00:06.1]} 76. Kf5
{[%clk 0:00:48.6]} 76... Qxd2 {[%clk 0:00:06.7]} 77. Kf6 {[%clk 0:00:49.5]}
77... Rf1+ {[%clk 0:00:06.6]} 78. Ke7 {[%clk 0:00:50.4]} 78... Qe3+ {[%clk
0:00:06.8]} 79. Kd6 {[%clk 0:00:50.8]} 79... Rd1+ {[%clk 0:00:07.4]} 80. Kc7
{[%clk 0:00:51]} 80... Qc3+ {[%clk 0:00:08.3]} 81. Kb6 {[%clk 0:00:51.8]} 81...
Rd6+ {[%clk 0:00:08.5]} 82. Ka5 {[%clk 0:00:52.7]} 82... Qxa3# {[%clk 0:00:08]}
0-1